bitfinex/quotes_SOLUSD_20240726
["timestamp","ask_amount","ask_price","bid_price","bid_amount"]
[1721957249101,20.0,173.12,173.05,23.015565]
[1721957249625,5.7773,173.09,173.05,17.236965]
[1721957249813,5.7777,173.08,173.05,17.236965]
[1721957250016,20.0,173.1,173.05,17.236965]
[1721957250225,45.0,173.09,173.05,0.816065]
[1721957250827,5.7783,173.06,173.05,0.816065]
[1721957251009,50.7783,173.06,173.05,0.816065]
[1721957254012,26.02,173.08,173.05,0.816065]
[1721957254331,20.0,173.12,173.05,0.816065]
[1721957254332,40.462,173.11,173.05,0.816065]
[1721957254535,5.7783,173.06,173.05,0.816065]
[1721957255412,31.798,173.08,173.05,0.816065]
[1721957255727,5.778,173.08,173.05,0.816065]
[1721957255914,20.0,173.1,173.05,0.816065]
[1721957256101,5.7783,173.06,173.05,0.816065]
[1721957256818,50.7783,173.06,173.05,0.816065]
[1721957257706,40.462,173.11,173.05,0.816065]
[1721957257906,5.7782,173.07,173.05,0.816065]
[1721957258336,5.7783,173.06,173.05,0.816065]
[1721957259541,5.7772,173.1,173.05,0.816065]
[1721957259713,26.02,173.11,173.05,0.816065]
[1721957259904,5.7772,173.1,173.05,6.594565]
[1721957260619,5.7773,173.09,173.05,0.816065]
[1721957260928,5.7777,173.08,173.05,0.816065]
[1721957261633,5.7774,173.09,173.05,0.816065]
[1721957261819,45.0,173.13,173.05,6.594565]
[1721957261820,5.777,173.1,173.05,6.594565]
[1721957262017,5.7767,173.11,173.05,0.816065]
[1721957262335,5.7764,173.12,173.07,5.7779]
[1721957262519,5.776,173.13,173.08,5.7774]
[1721957262704,40.4571,173.17,173.09,5.7771]
[1721957263619,26.02,173.17,173.1,6.025]
[1721957263816,16.73673855,173.2,173.1,6.025]
[1721957263817,5.7752,173.16,173.11,5.7765]
[1721957264226,5.775,173.16,173.1,6.025]
[1721957264629,40.4543,173.2,173.11,5.7766]
[1721957264630,5.7754,173.15,173.11,5.7766]
[1721957264812,5.7754,173.15,173.1,11.8019]
[1721957265221,5.776,173.13,173.1,6.025]
[1721957265930,5.7764,173.12,173.1,6.025]
[1721957266145,5.7764,173.12,173.07,5.7779]
[1721957266326,46.02,173.09,173.05,0.816065]
[1721957266519,31.7983,173.06,173.05,0.816065]
[1721957266714,76.7983,173.06,173.05,0.816065]
[1721957267333,31.7983,173.06,173.05,0.816065]
[1721957268730,76.7983,173.06,173.05,0.816065]
[1721957270447,5.7776,173.09,173.05,0.816065]
[1721957270635,5.778,173.08,173.05,0.816065]
[1721957270952,5.778,173.07,173.05,0.816065]
[1721957271136,5.7773,173.09,173.05,6.594565]
[1721957271334,5.7773,173.09,173.05,0.816065]
[1721957271545,26.02,173.14,173.06,27.5843]
[1721957271960,26.02,173.14,173.06,21.8061]
[1721957272329,5.777,173.1,173.06,21.8061]
[1721957272526,26.02,173.14,173.06,21.8061]
[1721957272527,5.7767,173.11,173.06,27.5844]
[1721957272726,5.7772,173.1,173.06,21.8061]
[1721957273236,5.7773,173.09,173.06,21.8061]
[1721957273645,5.777,173.1,173.06,21.8061]
[1721957273855,5.777,173.1,173.06,27.5844]
[1721957275450,5.777,173.1,173.06,21.8061]
[1721957276852,5.7774,173.09,173.06,21.8061]
[1721957277430,5.7777,173.08,173.06,21.8061]
[1721957277626,14.4404,173.13,173.06,21.8061]
[1721957277627,5.7774,173.09,173.06,21.8061]
[1721957278245,5.778,173.07,173.06,15.4208]
[1721957278552,5.7776,173.08,173.06,15.4208]
[1721957279055,5.7777,173.08,173.06,15.4208]
[1721957279238,5.7773,173.1,173.06,15.4208]
[1721957279438,14.4427,173.1,173.05,0.816065]
[1721957279753,5.7783,173.06,173.05,0.816065]
[1721957281333,50.7783,173.06,173.05,0.816065]
[1721957281554,5.7783,173.06,173.05,0.816065]
[1721957281855,50.7783,173.06,173.05,0.816065]
[1721957284146,26.02,173.07,173.05,0.816065]
[1721957284454,5.7776,173.09,173.05,0.816065]
[1721957284756,31.7973,173.1,173.05,6.594665]
[1721957284957,26.02,173.1,173.05,0.816065]
[1721957285137,5.778,173.07,173.05,0.816065]
[1721957286265,5.7774,173.09,173.05,0.816065]
[1721957286441,5.7777,173.08,173.05,0.816065]
[1721957286831,26.02,173.1,173.05,0.816065]
[1721957287447,5.7774,173.09,173.05,0.816065]
[1721957287660,5.7777,173.08,173.05,0.816065]
[1721957288660,26.02,173.1,173.05,0.816065]
[1721957289532,5.7783,173.06,173.05,0.816065]
[1721957289737,5.778,173.07,173.05,0.816065]
[1721957289964,5.7776,173.08,173.05,0.816065]
[1721957290965,5.7781,173.07,173.05,0.816065]
[1721957291153,26.02,173.1,173.05,0.816065]
[1721957292769,5.7777,173.08,173.05,0.816065]
[1721957294642,5.778,173.07,173.05,0.816065]
[1721957294853,5.7783,173.06,173.05,0.816065]
[1721957297369,50.7783,173.06,173.05,0.816065]
[1721957299344,5.7783,173.06,173.05,0.816065]
[1721957299545,26.02,173.09,173.05,0.816065]
[1721957299744,45.0,173.08,173.05,0.816065]
[1721957300846,5.7781,173.07,173.05,0.816065]
[1721957302072,5.7783,173.06,173.05,0.816065]
[1721957302260,26.02,173.09,173.05,0.816065]
[1721957302453,5.7777,173.08,173.05,0.816065]
[1721957302863,26.02,173.09,173.05,0.816065]
[1721957303065,2.31153033,173.21,173.06,21.7149]
[1721957303257,2.31153033,173.21,173.07,66.15494925]
[1721957303258,26.02,173.21,173.07,66.15494925]
[1721957303460,26.02,173.25,173.16,6.4327]
[1721957303675,5.7734,173.21,173.16,27.4896]
[1721957304065,5.773,173.22,173.17,5.7746]
[1721957304473,26.02,173.25,173.16,21.7149]
[1721957304662,5.7746,173.17,173.16,21.7149]
[1721957304977,5.7743,173.18,173.16,21.7149]
[1721957305475,5.774,173.19,173.16,21.7149]
[1721957309276,5.7732,173.22,173.17,5.7745]
[1721957309581,5.7735,173.21,173.16,27.4898]
[1721957310778,26.02,173.22,173.16,21.7149]
[1721957310960,46.02,173.22,173.16,21.7149]
[1721957311155,5.774,173.19,173.16,21.7149]
[1721957311969,5.7745,173.18,173.16,21.7149]
[1721957316495,45.0,173.21,173.16,21.7149]
[1721957317090,5.7743,173.18,173.16,21.7149]
[1721957317389,5.7743,173.18,173.13,5.7757]
[1721957319308,5.7743,173.18,173.14,5.7756]
[1721957319496,5.7751,173.16,173.12,27.9398]
[1721957319797,59.4339,173.21,173.13,5.7759]
[1721957321093,5.7747,173.17,173.13,5.7759]
[1721957321475,60.4554,173.19,173.07,22.8617]
[1721957321789,45.0,173.18,173.07,22.8617]
[1721957322299,5.7753,173.15,173.07,22.8617]
[1721957322867,5.7753,173.15,173.1,5.7769]
[1721957323477,45.0,173.18,173.1,5.7769]
[1721957323692,45.0,173.18,173.07,22.8617]
[1721957324077,34.4373,173.17,173.07,22.8617]
[1721957324281,45.0,173.16,173.07,22.8617]
[1721957324495,5.7759,173.14,173.09,5.7772]
[1721957324679,5.7761,173.13,173.09,5.7772]
[1721957324988,5.7757,173.14,173.09,5.7772]
[1721957325185,5.7757,173.14,173.1,5.7769]
[1721957325386,5.7756,173.14,173.09,5.7772]
[1721957325583,20.0,173.17,173.07,22.8617]
[1721957325896,5.7765,173.12,173.07,28.6396]
[1721957326588,20.0,173.13,173.05,0.816065]
[1721957326890,45.0,173.12,173.05,0.816065]
[1721957327094,71.02,173.16,173.05,0.816065]
[1721957327278,5.7763,173.12,173.07,5.7777]
[1721957327468,5.7763,173.12,173.08,5.7776]
[1721957327673,5.7763,173.12,173.07,5.7779]
[1721957328996,5.7763,173.12,173.08,5.7776]
[1721957330392,5.7767,173.11,173.07,5.7779]
[1721957331482,5.7763,173.12,173.07,5.7779]
[1721957331687,5.776,173.14,173.09,5.7773]
[1721957331995,5.776,173.14,173.1,5.7768]
[1721957332574,45.0,173.16,173.11,5.7766]
[1721957332776,45.0,173.16,173.05,1.97147234]
[1721957333077,5.7757,173.14,173.1,5.7769]
[1721957333587,5.7757,173.14,173.09,5.7772]
[1721957333786,5.776,173.13,173.09,5.7772]
[1721957334699,5.776,173.13,173.1,6.0587]
[1721957336805,5.7764,173.12,173.1,6.0587]
[1721957338477,26.02,173.19,173.1,6.0587]
[1721957338478,5.7743,173.19,173.11,15.8996]
[1721957338678,14.4318,173.23,173.15,5.7753]
[1721957339203,5.7733,173.21,173.16,5.7747]
[1721957339794,5.7729,173.23,173.18,5.7743]
[1721957340384,14.4295,173.26,173.19,21.786]
[1721957340589,14.4295,173.26,173.19,16.0121]
[1721957340887,5.7731,173.22,173.19,16.0121]
[1721957341088,14.4295,173.26,173.09,26.02]
[1721957341089,46.02,173.24,173.15,16.0121]
[1721957341290,5.7737,173.2,173.15,21.7871]
[1721957341495,5.7737,173.2,173.16,5.7748]
[1721957342389,5.7734,173.21,173.17,5.7746]
[1721957343199,5.7734,173.21,173.16,5.7749]
[1721957344099,5.7734,173.21,173.17,5.7745]
[1721957344595,26.02,173.24,173.17,5.7745]
[1721957344596,5.7731,173.22,173.17,5.7745]
[1721957345005,5.7734,173.21,173.17,5.7745]
[1721957345209,46.02,173.24,173.16,5.7749]
[1721957345509,45.0,173.23,173.16,5.7749]
[1721957346092,5.7736,173.2,173.16,5.7749]
[1721957346294,5.7734,173.21,173.17,5.7746]
[1721957346489,26.02,173.21,173.1,21.5727]
[1721957346691,5.7759,173.14,173.1,21.5727]
[1721957346890,5.7759,173.14,173.09,5.7773]
[1721957346891,40.456,173.18,173.09,5.7773]
[1721957347111,5.776,173.13,173.08,5.7775]
[1721957347490,5.776,173.13,173.09,5.7773]
[1721957347690,5.7757,173.14,173.09,5.7773]
[1721957348013,5.776,173.13,173.09,5.7773]
[1721957348694,5.7756,173.14,173.09,5.7773]
[1721957349097,31.7954,173.15,173.06,15.0305]
[1721957349519,26.02,173.15,173.06,15.0305]
[1721957349725,5.7746,173.17,173.12,5.7762]
[1721957350208,5.775,173.16,173.12,5.7762]
[1721957354716,20.0,173.16,173.06,15.0305]
[1721957355015,71.02,173.15,173.06,15.0305]
[1721957355392,5.7766,173.12,173.08,5.7775]
[1721957355618,5.7766,173.12,173.07,5.7779]
[1721957355929,5.7766,173.12,173.08,5.7776]
[1721957356416,5.776,173.13,173.08,5.7776]
[1721957356629,71.02,173.15,173.06,15.0305]
[1721957356838,5.7767,173.11,173.07,5.7777]
[1721957357122,5.7764,173.12,173.07,5.7777]
[1721957357517,46.02,173.12,173.05,0.816065]
[1721957357717,5.7776,173.08,173.05,0.816065]
[1721957357915,5.7774,173.09,173.05,0.816065]
[1721957358499,5.7777,173.08,173.05,0.816065]
[1721957359033,31.7974,173.09,173.05,0.816065]
[1721957360427,5.7767,173.11,173.06,5.7782]
[1721957361240,5.777,173.1,173.06,5.7782]
[1721957362240,5.7772,173.1,173.05,6.594665]
[1721957362435,46.02,173.12,173.05,6.594665]
[1721957362735,5.7775,173.09,173.05,0.816065]
[1721957363823,5.7777,173.08,173.05,0.816065]
[1721957364737,31.7974,173.09,173.05,0.816065]
[1721957366134,31.7974,173.09,173.05,6.594665]
[1721957366834,26.02,173.09,173.06,5.7783]
[1721957367941,31.7973,173.09,173.05,0.816065]
[1721957369825,31.7973,173.09,173.05,6.594665]
[1721957370018,26.02,173.09,173.05,0.816065]
[1721957370241,26.02,173.09,173.06,5.778]
[1721957372619,26.02,173.09,173.05,0.816065]
[1721957373514,5.7779,173.08,173.05,0.816065]
[1721957374221,13.01,173.06,173.05,0.816065]
[1721957380428,5.777,173.1,173.05,6.594665]
[1721957380629,13.01,173.06,173.05,6.594665]
[1721957381957,13.01,173.06,173.05,0.816065]
[1721957384646,21.07664155,173.14,173.05,0.816065]
[1721957384855,13.01,173.06,173.05,6.594665]
[1721957385443,18.7883,173.06,173.05,0.816065]
[1721957385847,20.0,173.12,173.05,0.816065]
[1721957386057,20.0,173.11,173.05,0.816065]
[1721957386255,13.01,173.06,173.05,0.816065]
[1721957386831,13.01,173.06,173.05,6.594565]
[1721957387027,13.01,173.06,173.05,0.816065]
[1721957388358,63.7883,173.06,173.05,0.816065]
[1721957390338,18.7883,173.06,173.05,0.816065]
[1721957391269,5.778,173.07,173.05,0.816065]
[1721957391559,13.01,173.06,173.05,0.816065]
[1721957392440,18.7883,173.06,173.05,0.816065]
[1721957392636,11.5566,173.1,173.05,6.594465]
[1721957392837,5.7795,173.1,173.09,5.7773]
[1721957393137,18.7895,173.1,173.08,5.7776]
[1721957393459,13.01,173.09,173.08,5.7776]
[1721957393648,13.01,173.09,173.07,5.7778]
[1721957393850,13.01,173.08,173.05,28.213965]
[1721957394035,5.7773,173.09,173.05,22.435665]
[1721957394036,13.01,173.06,173.05,22.435665]
[1721957394237,13.01,173.06,173.05,16.016765]
[1721957394554,13.01,173.06,173.05,0.816065]
[1721957398165,18.795,173.06,173.05,0.816065]
[1721957398874,13.01,173.06,173.05,0.816065]
[1721957399072,18.7883,173.06,173.05,0.816065]
[1721957401451,5.7783,173.06,173.05,0.816065]
[1721957401867,18.7883,173.06,173.05,0.816065]
[1721957402475,20.0,173.16,173.05,0.816065]
[1721957402687,5.7767,173.11,173.06,5.778]
[1721957402858,13.01,173.08,173.06,5.778]
[1721957403666,13.01,173.07,173.05,0.816065]
[1721957403867,18.7883,173.06,173.05,0.816065]
[1721957404072,13.01,173.06,173.05,0.816065]
[1721957404692,5.778,173.07,173.05,0.816065]
[1721957404864,13.01,173.06,173.05,0.816065]
[1721957405362,18.7883,173.06,173.05,0.816065]
[1721957405577,13.01,173.06,173.05,0.816065]
[1721957405778,18.7883,173.06,173.05,0.816065]
[1721957407160,13.01,173.06,173.05,0.816065]
[1721957408068,14.4422,173.11,173.05,0.816065]
[1721957408271,13.01,173.06,173.05,0.816065]
[1721957408586,13.01,173.09,173.05,0.816065]
[1721957409494,11.16524222,173.14,173.09,5.7771]
[1721957409702,5.776,173.13,173.09,5.7772]
[1721957409870,13.01,173.11,173.09,5.7772]
[1721957410271,13.01,173.11,173.08,5.7775]
[1721957410571,13.01,173.11,173.09,5.7772]
[1721957410898,13.01,173.1,173.09,20.9024]
[1721957411093,13.01,173.11,173.09,20.9024]
[1721957411279,13.01,173.11,173.09,15.1252]
[1721957411983,13.01,173.1,173.09,15.1252]
[1721957412701,13.01,173.1,173.09,20.9025]
[1721957412990,13.01,173.11,173.09,20.9025]
[1721957413199,5.7773,173.09,173.05,16.040465]
[1721957413370,13.01,173.07,173.05,16.040465]
[1721957413572,14.437,173.17,173.05,29.050465]
[1721957413780,20.0,173.18,173.13,5.776]
[1721957413781,13.01,173.14,173.13,5.776]
[1721957414496,13.01,173.16,173.14,5.7755]
[1721957415801,13.01,173.15,173.13,5.7759]
[1721957417303,13.01,173.15,173.14,5.7756]
[1721957417779,13.01,173.16,173.15,5.7753]
[1721957418178,5.774,173.19,173.15,5.7753]
[1721957418481,13.01,173.17,173.15,5.7753]
[1721957419403,13.01,173.16,173.14,5.7755]
[1721957419993,13.01,173.16,173.12,15.3617]
[1721957419994,15.5482,173.3,173.15,13.01]
[1721957420195,15.5482,173.3,173.21,5.7733]
[1721957420196,13.01,173.25,173.21,5.7733]
[1721957420512,13.01,173.26,173.21,6.3818]
[1721957420801,5.7704,173.3,173.22,13.01]
[1721957421003,13.01,173.29,173.26,5.7716]
[1721957421214,13.01,173.29,173.27,5.7712]
[1721957421511,13.01,173.28,173.25,5.7719]
[1721957422204,5.7704,173.3,173.25,5.7719]
[1721957422694,5.7713,173.27,173.22,5.7728]
[1721957422903,5.771,173.28,173.23,5.7726]
[1721957423502,25.95,173.31,173.24,5.7722]
[1721957423811,25.95,173.25,173.2,16.4199]
[1721957424102,25.95,173.25,173.17,6.2059]
[1721957424307,45.0,173.24,173.16,16.5074]
[1721957424488,5.774,173.19,173.16,16.5074]
[1721957424683,5.7735,173.21,173.16,5.775]
[1721957426107,5.7735,173.21,173.15,16.5074]
[1721957426108,5.7737,173.2,173.15,16.5074]
[1721957426287,5.774,173.19,173.15,22.2825]
[1721957426890,5.7747,173.17,173.12,11.9819]
[1721957427202,5.7744,173.18,173.13,5.7759]
[1721957427408,5.7746,173.17,173.13,5.7759]
[1721957427584,5.7746,173.17,173.12,11.9821]
[1721957428307,5.7743,173.18,173.13,5.7759]
[1721957428830,5.7743,173.18,173.12,6.2059]
[1721957429304,5.7739,173.2,173.12,6.2059]
[1721957429479,5.7733,173.21,173.16,5.7749]
[1721957430315,5.7737,173.2,173.16,5.7749]
[1721957430607,25.95,173.28,173.13,1.15493062]
[1721957430911,5.7719,173.26,173.21,5.7733]
[1721957431113,5.7713,173.27,173.22,5.7729]
[1721957431485,20.0,173.3,173.21,5.7732]
[1721957431688,5.7721,173.25,173.2,5.7736]
[1721957433200,5.7717,173.26,173.21,5.7732]
[1721957433504,32.2824,173.31,173.15,1.15458078]
[1721957433505,25.95,173.31,173.15,1.15458078]
[1721957433706,25.95,173.31,173.16,6.6403]
[1721957434006,5.7707,173.29,173.24,5.7722]
[1721957434684,5.7711,173.28,173.23,5.7726]
[1721957434885,5.7711,173.28,173.16,6.6403]
[1721957434886,60.3756,173.31,173.16,6.6403]
[1721957435389,20.0,173.3,173.2,5.7736]
[1721957435810,45.0,173.29,173.2,5.7736]
[1721957436333,5.7725,173.24,173.19,5.7737]
[1721957437115,5.7719,173.26,173.2,5.7735]
[1721957437411,25.95,173.28,173.2,5.7735]
[1721957437412,5.772,173.25,173.2,5.7735]
[1721957437589,25.95,173.28,173.16,6.6403]
[1721957437889,45.0,173.27,173.2,5.7736]
[1721957438085,45.0,173.27,173.16,6.6403]
[1721957438086,5.7724,173.24,173.19,5.7739]
[1721957439806,45.0,173.27,173.17,5.7743]
[1721957439807,20.0,173.26,173.17,5.7743]
[1721957440127,5.7743,173.19,173.14,16.6029]
[1721957440319,5.7743,173.19,173.14,22.3782]
[1721957440638,5.7743,173.18,173.13,5.7759]
[1721957440838,5.7739,173.2,173.14,5.7755]
[1721957441014,5.774,173.19,173.14,5.7755]
[1721957441516,5.7744,173.18,173.13,5.7759]
[1721957442824,5.774,173.19,173.14,5.7755]
[1721957443233,5.7744,173.18,173.14,5.7755]
[1721957443424,25.95,173.22,173.12,6.525]
[1721957443425,5.7747,173.17,173.12,12.301]
[1721957444016,5.775,173.16,173.12,12.3013]
[1721957445438,5.7753,173.15,173.12,6.525]
[1721957446334,5.775,173.16,173.12,6.525]
[1721957453350,5.7745,173.18,173.12,6.525]
[1721957453649,5.7747,173.17,173.13,5.7759]
[1721957454350,12.99,173.16,173.12,12.3012]
[1721957454541,12.99,173.14,173.12,6.525]
[1721957455053,12.99,173.15,173.12,12.3011]
[1721957455753,12.99,173.15,173.12,12.3013]
[1721957456625,6.02934522,173.22,173.12,6.525]
[1721957456832,5.775,173.16,173.12,6.525]
[1721957457040,12.99,173.16,173.12,6.525]
[1721957457248,12.99,173.16,173.12,12.3011]
[1721957457430,12.99,173.16,173.13,5.7759]
[1721957458047,12.99,173.16,173.14,5.7756]
[1721957458253,5.7746,173.18,173.15,5.7752]
[1721957458254,12.99,173.18,173.15,5.7752]
[1721957459056,12.99,173.18,173.12,19.515]
[1721957459656,12.99,173.18,173.15,5.775]
[1721957461150,12.99,173.17,173.12,6.525]
[1721957461353,12.99,173.13,173.07,6.66]
[1721957461546,12.99,173.1,173.07,6.66]
[1721957461753,18.7667,173.11,173.07,6.66]
[1721957461950,18.7664,173.12,173.07,12.4379]
[1721957462136,5.7766,173.11,173.07,6.66]
[1721957462754,5.7766,173.11,173.06,21.1401]
[1721957463759,5.7779,173.08,173.06,15.3619]
[1721957463956,5.7773,173.09,173.06,15.3619]
[1721957464156,5.7769,173.11,173.06,21.1402]
[1721957464354,5.777,173.1,173.06,21.1402]
[1721957465060,5.7766,173.12,173.07,5.7779]
[1721957465449,5.7767,173.11,173.06,15.3619]
[1721957465673,5.777,173.1,173.06,15.3619]
[1721957466139,5.7767,173.11,173.06,21.1401]
[1721957466962,5.777,173.1,173.06,21.1401]
[1721957467365,26.0,173.14,173.06,15.3619]
[1721957467366,40.4399,173.14,173.06,15.3619]
[1721957467545,5.7776,173.08,173.05,0.816065]
[1721957467746,5.7774,173.09,173.05,0.816065]
[1721957468752,5.7777,173.08,173.05,0.816065]
[1721957469567,26.0,173.11,173.05,0.816065]
[1721957469785,5.7783,173.06,173.05,0.816065]
[1721957470263,50.7783,173.06,173.05,0.816065]
[1721957473156,59.4458,173.06,173.0,0.32425525]
[1721957473358,91.0,173.05,173.0,0.32425525]
[1721957474164,5.78,173.01,173.0,0.32425525]
[1721957474470,50.78,173.01,173.0,0.32425525]
[1721957475162,50.78,173.01,172.87,0.8160325]
[1721957475163,45.0,173.01,172.9,16.2964]
[1721957475365,5.7803,173.0,172.95,5.7819]
[1721957475668,5.7803,173.0,172.9,16.2964]
[1721957476063,45.0,173.01,172.9,16.2964]
[1721957476467,5.7816,172.97,172.9,16.2964]
[1721957477166,45.0,173.0,172.9,16.2964]
[1721957477380,5.7807,172.99,172.94,5.7822]
[1721957477577,45.0,173.01,172.93,5.7826]
[1721957477578,5.781,172.98,172.93,5.7826]
[1721957478573,5.7826,172.94,172.9,16.2964]
[1721957478778,60.4514,173.0,172.9,22.08]
[1721957478950,45.0,172.99,172.9,22.08]
[1721957479155,5.7823,172.94,172.9,16.2964]
[1721957479970,5.7827,172.93,172.9,16.2964]
[1721957480168,5.7824,172.94,172.9,16.2964]
[1721957481677,5.782,172.95,172.9,22.08]
[1721957481977,5.7823,172.94,172.9,16.2964]
[1721957483976,26.0,172.97,172.87,0.8160325]
[1721957483977,5.7827,172.93,172.87,0.8160325]
[1721957484277,26.0,172.94,172.87,0.8160325]
[1721957484458,5.7839,172.9,172.87,0.8160325]
[1721957484660,5.7834,172.91,172.87,0.8160325]
[1721957484872,5.7824,172.94,172.89,5.7837]
[1721957485061,5.7824,172.94,172.87,0.8160325]
[1721957485272,5.7824,172.94,172.89,5.7837]
[1721957485472,5.7819,172.96,172.9,5.7836]
[1721957485859,5.7821,172.95,172.9,5.7836]
[1721957486665,26.0,173.01,172.88,15.8218]
[1721957486875,26.0,173.01,172.93,5.7823]
[1721957487073,5.781,172.98,172.93,5.7823]
[1721957487580,26.0,173.01,172.91,6.1273]
[1721957487581,5.7806,173.0,172.91,6.1273]
[1721957487882,5.7807,172.99,172.95,5.7819]
[1721957488082,26.0,173.04,172.93,16.0495]
[1721957488258,5.7793,173.03,172.98,5.7809]
[1721957488461,5.7798,173.02,172.97,5.7812]
[1721957489683,26.0,173.01,172.93,16.0495]
[1721957489869,5.7814,172.97,172.93,16.0495]
[1721957490376,5.7814,172.97,172.93,21.8321]
[1721957490758,5.7814,172.97,172.93,16.0495]
[1721957490960,5.781,172.99,172.93,21.832]
[1721957491161,5.781,172.99,172.94,5.7823]
[1721957491361,45.0,173.0,172.93,16.0495]
[1721957491559,5.7807,172.99,172.93,16.0495]
[1721957491782,26.0,173.04,172.93,16.0495]
[1721957492156,5.7802,173.01,172.96,5.7814]
[1721957492459,5.7797,173.02,172.97,5.7812]
[1721957492656,5.7806,173.0,172.93,16.0495]
[1721957493469,26.0,173.04,172.93,16.0495]
[1721957493677,5.78,173.01,172.96,5.7814]
[1721957494378,5.7808,172.99,172.94,5.782]
[1721957494582,5.7808,172.99,172.95,5.7819]
[1721957494786,79.4488,173.03,172.93,21.8319]
[1721957494987,26.0,173.01,172.93,16.0495]
[1721957495193,5.7802,173.01,172.97,5.7812]
[1721957495397,5.7797,173.02,172.97,5.7812]
[1721957495570,5.78,173.01,172.96,5.7815]
[1721957495763,5.7803,173.0,172.96,5.7815]
[1721957496410,65.0,173.03,172.93,16.0495]
[1721957496762,46.0,173.01,172.93,16.0495]
[1721957496977,5.7821,172.95,172.93,16.0495]
[1721957497264,26.0,173.01,172.91,6.1273]
[1721957497460,5.781,172.98,172.94,5.7822]
[1721957497683,5.7817,172.96,172.91,11.9105]
[1721957498089,5.782,172.95,172.91,6.1273]
[1721957498282,60.4507,173.01,172.91,6.1273]
[1721957498587,45.0,173.0,172.91,6.1273]
[1721957498897,5.7813,172.97,172.92,5.7829]
[1721957499096,5.7813,172.97,172.93,5.7825]
[1721957499478,5.781,172.98,172.94,5.7822]
[1721957499674,5.7807,172.99,172.91,6.1273]
[1721957500072,5.7807,172.99,172.94,5.7823]
[1721957500790,5.7807,172.99,172.91,6.1273]
[1721957500791,5.7813,172.97,172.91,6.1273]
[1721957501975,5.781,172.98,172.91,6.1273]
[1721957502168,5.7807,172.99,172.91,6.1273]
[1721957502674,5.7802,173.01,172.96,5.7813]
[1721957502873,5.7802,173.01,172.97,5.7812]
[1721957503096,5.7797,173.02,172.97,5.7812]
[1721957503485,5.7801,173.01,172.96,5.7816]
[1721957503682,26.0,173.04,172.96,5.7816]
[1721957503683,5.7804,173.0,172.96,5.7816]
[1721957503885,5.7804,173.0,172.95,5.7819]
[1721957504585,5.7801,173.01,172.96,5.7815]
[1721957504765,5.7801,173.01,172.91,6.1273]
[1721957504969,5.7801,173.01,172.97,5.7813]
[1721957505584,5.7801,173.01,172.96,5.7815]
[1721957505902,5.7797,173.02,172.97,5.781]
[1721957506193,5.7797,173.02,172.96,15.6717]
[1721957506394,14.447,173.05,172.98,5.7808]
[1721957506395,5.7794,173.03,172.98,5.7808]
[1721957506995,5.7791,173.04,173.0,5.7802]
[1721957507193,5.7795,173.03,172.99,5.7806]
[1721957507380,60.4455,173.07,172.97,5.7813]
[1721957507790,5.7797,173.02,172.98,5.7809]